fUSD/lending_fUSD_20260506
["ID","MTS","AMOUNT","RATE_DAILY","PERIOD"]
[421705532,1778049231000,-300.0,0.00029644,30]
[421705535,1778049231000,-200.0,0.0003,2]
[421705534,1778049231000,-386.0,0.00029973,2]
[421705541,1778049231000,-8000.0,0.0003,3]
[421705533,1778049231000,-22643.39657233,0.00029899,2]
[421705538,1778049231000,-650.0,0.0003,2]
[421705539,1778049231000,-433.01436347,0.0003,5]
[421705540,1778049231000,-200.0,0.0003,2]
[421705536,1778049231000,-200.0,0.0003,2]
[421705537,1778049231000,-200.0,0.0003,2]
[421705543,1778049231000,-162.55277151,0.0003,3]
[421705544,1778049231000,-20133.34531172,0.0003,2]
[421705551,1778049231000,-14038.42104733,0.0003013,2]
[421705545,1778049231000,-192.90505518,0.0003,10]
[421705552,1778049231000,-399.67,0.00030137,2]
[421705548,1778049231000,-286.24644495,0.00030114,30]
[421705549,1778049231000,-1088.00308642,0.0003013,2]
[421705547,1778049231000,-2000.0,0.00030037,7]
[421705546,1778049231000,-10000.0,0.0003,30]
[421705550,1778049231000,-364.57,0.0003013,15]
[421705554,1778049231000,-1000.0,0.00030137,65]
[421705556,1778049231000,-6321.0,0.00030137,120]
[421705555,1778049231000,-3958.0,0.00030137,120]
[421705501,1778049231000,-315.0,0.00029644,30]
[421705531,1778049231000,-300.0,0.00029644,30]
[421705526,1778049231000,-300.0,0.00029644,30]
[421705542,1778049231000,-200.0,0.0003,2]
[421705522,1778049231000,-300.0,0.00029644,30]
[421705497,1778049231000,-315.0,0.00029644,30]
[421705527,1778049231000,-300.0,0.00029644,30]
[421705502,1778049231000,-315.0,0.00029644,30]
[421705498,1778049231000,-315.0,0.00029644,30]
[421705503,1778049231000,-315.0,0.00029644,30]
[421705499,1778049231000,-315.0,0.00029644,30]
[421705506,1778049231000,-315.0,0.00029644,30]
[421705509,1778049231000,-315.0,0.00029644,30]
[421705508,1778049231000,-315.0,0.00029644,30]
[421705515,1778049231000,-300.0,0.00029644,30]
[421705512,1778049231000,-300.0,0.00029644,30]
[421705514,1778049231000,-300.0,0.00029644,30]
[421705516,1778049231000,-300.0,0.00029644,30]
[421705510,1778049231000,-315.0,0.00029644,30]
[421705528,1778049231000,-300.0,0.00029644,30]
[421705523,1778049231000,-300.0,0.00029644,30]
[421705511,1778049231000,-315.0,0.00029644,30]
[421705524,1778049231000,-300.0,0.00029644,30]
[421705525,1778049231000,-300.0,0.00029644,30]
[421705521,1778049231000,-300.0,0.00029644,30]
[421705520,1778049231000,-300.0,0.00029644,30]
[421705529,1778049231000,-300.0,0.00029644,30]
[421705519,1778049231000,-300.0,0.00029644,30]
[421705517,1778049231000,-300.0,0.00029644,30]
[421705507,1778049231000,-315.0,0.00029644,30]
[421705513,1778049231000,-300.0,0.00029644,30]
[421705518,1778049231000,-300.0,0.00029644,30]
[421705591,1778049232000,-553.0,0.00030521,30]
[421705595,1778049232000,-553.0,0.00030521,30]
[421705594,1778049232000,-553.0,0.00030521,30]
[421705593,1778049232000,-553.0,0.00030521,30]
[421705600,1778049232000,-553.0,0.00030521,30]
[421705590,1778049232000,-553.0,0.00030521,30]
[421705601,1778049232000,-553.0,0.00030521,30]
[421705599,1778049232000,-553.0,0.00030521,30]
[421705589,1778049232000,-553.0,0.00030521,30]
[421705598,1778049232000,-553.0,0.00030521,30]
[421705597,1778049232000,-553.0,0.00030521,30]
[421705592,1778049232000,-553.0,0.00030521,30]
[421705596,1778049232000,-553.0,0.00030521,30]
[421705615,1778049232000,-553.0,0.00030521,30]
[421705606,1778049232000,-553.0,0.00030521,30]
[421705607,1778049232000,-553.0,0.00030521,30]
[421705604,1778049232000,-553.0,0.00030521,30]
[421705605,1778049232000,-553.0,0.00030521,30]
[421705608,1778049232000,-553.0,0.00030521,30]
[421705610,1778049232000,-553.0,0.00030521,30]
[421705609,1778049232000,-553.0,0.00030521,30]
[421705612,1778049232000,-553.0,0.00030521,30]
[421705613,1778049232000,-553.0,0.00030521,30]
[421705611,1778049232000,-553.0,0.00030521,30]
[421705603,1778049232000,-553.0,0.00030521,30]
[421705588,1778049232000,-553.0,0.00030521,30]
[421705602,1778049232000,-553.0,0.00030521,30]
[421705587,1778049232000,-553.0,0.00030521,30]
[421705563,1778049232000,-2502.4,0.00030239,2]
[421705582,1778049232000,-553.0,0.00030521,30]
[421705562,1778049232000,-401.06,0.000302,2]
[421705557,1778049232000,-1664.97863847,0.00030137,30]
[421705559,1778049232000,-162.27,0.00030137,2]
[421705558,1778049232000,-150.0,0.00030137,30]
[421705560,1778049232000,-185.97729665,0.00030137,2]
[421705561,1778049232000,-150.0,0.00030137,2]
[421705564,1778049232000,-73732.17,0.000303,7]
[421705575,1778049232000,-553.0,0.00030521,30]
[421705565,1778049232000,-184.97,0.00030411,120]
[421705566,1778049232000,-200.0,0.00030437,2]
[421705568,1778049232000,-500.0,0.00030502,20]
[421705573,1778049232000,-553.0,0.00030521,30]
[421705570,1778049232000,-553.0,0.00030521,30]
[421705571,1778049232000,-553.0,0.00030521,30]
[421705569,1778049232000,-553.0,0.00030521,30]
[421705574,1778049232000,-553.0,0.00030521,30]
[421705567,1778049232000,-152.0,0.00030465,5]
[421705572,1778049232000,-553.0,0.00030521,30]
[421705576,1778049232000,-553.0,0.00030521,30]
[421705580,1778049232000,-553.0,0.00030521,30]
[421705584,1778049232000,-553.0,0.00030521,30]
[421705578,1778049232000,-553.0,0.00030521,30]
[421705577,1778049232000,-553.0,0.00030521,30]
[421705581,1778049232000,-553.0,0.00030521,30]
[421705586,1778049232000,-553.0,0.00030521,30]
[421705583,1778049232000,-553.0,0.00030521,30]
[421705579,1778049232000,-553.0,0.00030521,30]
[421705585,1778049232000,-553.0,0.00030521,30]
[421705614,1778049232000,-553.0,0.00030521,30]
[421705616,1778049232000,-180.0,0.00030529,5]
[421705617,1778049232000,-200.0,0.00030737,2]
[421705651,1778049232000,-1177.93,0.00031635,30]
[421705650,1778049232000,-1177.93,0.00031612,30]
[421705652,1778049232000,-200.0,0.00031637,2]
[421705660,1778049232000,-1177.93,0.00031792,30]
[421705653,1778049232000,-1177.93,0.00031657,30]
[421705654,1778049232000,-1177.93,0.0003168,30]
[421705659,1778049232000,-1177.93,0.00031769,30]
[421705656,1778049232000,-1177.93,0.00031702,30]
[421705655,1778049232000,-73732.17,0.000317,7]
[421705658,1778049232000,-1177.93,0.00031747,30]
[421705657,1778049232000,-1177.93,0.00031724,30]
[421705662,1778049232000,-1177.93,0.00031837,30]
[421705647,1778049232000,-1177.93,0.00031545,30]
[421705672,1778049232000,-511.56756463,0.00032,120]
[421705661,1778049232000,-1177.93,0.00031814,30]
[421705663,1778049232000,-1177.93,0.00031859,30]
[421705665,1778049232000,-1177.93,0.00031904,30]
[421705664,1778049232000,-1177.93,0.00031882,30]
[421705670,1778049232000,-1177.93,0.00031994,30]
[421705666,1778049232000,-1177.93,0.00031927,30]
[421705669,1778049232000,-1177.93,0.00031971,30]
[421705668,1778049232000,-1177.93,0.00031949,30]
[421705667,1778049232000,-200.0,0.00031937,2]
[421705625,1778049232000,-152.0,0.00031316,30]
[421705675,1778049232000,-3672.7778125,0.00032,120]
[421705674,1778049232000,-212.15154379,0.00032,120]
[421705671,1778049232000,-731.57736638,0.00032,120]
[421705641,1778049232000,-1000.0,0.000314,7]
[421705673,1778049232000,-3492.21221339,0.00032,120]
[421705643,1778049232000,-200.06420411,0.000315,2]
[421705645,1778049232000,-467.95,0.00031507,75]
[421705618,1778049232000,-1630.68247498,0.0003084,2]
[421705619,1778049232000,-2000.0,0.00031001,2]
[421705622,1778049232000,-150.0,0.00031011,2]
[421705621,1778049232000,-2000.0,0.00031001,2]
[421705623,1778049232000,-200.0,0.00031037,2]
[421705624,1778049232000,-447.0,0.00031302,30]
[421705626,1778049232000,-263.0,0.00031316,30]
[421705631,1778049232000,-200.0,0.00031337,2]
[421705630,1778049232000,-829.0,0.00031333,30]
[421705628,1778049232000,-1100.0,0.00031316,30]
[421705627,1778049232000,-342.0,0.00031316,30]
[421705629,1778049232000,-152.0,0.00031332,6]
[421705620,1778049232000,-2000.0,0.00031001,2]
[421705635,1778049232000,-158.0,0.00031342,30]
[421705632,1778049232000,-441.0,0.00031342,30]
[421705640,1778049232000,-415.77,0.000314,7]
[421705644,1778049232000,-150.0,0.000315,2]
[421705646,1778049232000,-1177.93,0.00031522,30]
[421705638,1778049232000,-2000.0,0.00031385,2]
[421705642,1778049232000,-500.0,0.00031418,22]
[421705637,1778049232000,-2000.0,0.00031385,2]
[421705633,1778049232000,-153.0,0.00031342,30]
[421705649,1778049232000,-1177.93,0.0003159,30]
[421705639,1778049232000,-2000.0,0.00031385,2]
[421705634,1778049232000,-609.0,0.00031342,30]
[421705648,1778049232000,-1177.93,0.00031567,30]
[421705636,1778049232000,-2000.0,0.00031385,2]
[421705704,1778049233000,-200.0,0.00032237,2]
[421705717,1778049233000,-153.0,0.00032342,30]
[421705703,1778049233000,-1177.93,0.00032218,30]
[421705706,1778049233000,-1177.93,0.00032263,30]
[421705731,1778049233000,-1177.93,0.00032488,30]
[421705710,1778049233000,-152.0,0.00032316,30]
[421705720,1778049233000,-1177.93,0.00032353,30]
[421705709,1778049233000,-1177.93,0.00032308,30]
[421705718,1778049233000,-609.0,0.00032342,30]
[421705711,1778049233000,-263.0,0.00032316,30]
[421705705,1778049233000,-1177.93,0.00032241,30]
[421705715,1778049233000,-829.0,0.00032333,30]
[421705713,1778049233000,-1100.0,0.00032316,30]
[421705719,1778049233000,-158.0,0.00032342,30]
[421705716,1778049233000,-441.0,0.00032342,30]
[421705714,1778049233000,-1177.93,0.00032331,30]
[421705721,1778049233000,-500.0,0.0003236,24]
[421705722,1778049233000,-1177.93,0.00032376,30]
[421705724,1778049233000,-1900.0,0.000324,2]
[421705729,1778049233000,-1177.93,0.00032443,30]
[421705723,1778049233000,-1177.93,0.00032398,30]
[421705730,1778049233000,-1177.93,0.00032465,30]
[421705700,1778049233000,-1177.93,0.00032196,30]
[421705712,1778049233000,-342.0,0.00032316,30]
[421705702,1778049233000,-2502.4,0.0003221,5]
[421705695,1778049233000,-1419.836767,0.00032151,7]
[421705707,1778049233000,-1177.93,0.00032286,30]
[421705681,1778049233000,-600.0,0.0003208,3]
[421705684,1778049233000,-1177.93,0.00032129,30]
[421705678,1778049233000,-1177.93,0.00032016,30]
[421705683,1778049233000,-1177.93,0.00032106,30]
[421705677,1778049233000,-1756.63741928,0.00032,2]
[421705680,1778049233000,-1177.93,0.00032061,30]
[421705676,1778049233000,-359.12267326,0.00032,120]
[421705682,1778049233000,-1177.93,0.00032084,30]
[421705679,1778049233000,-1177.93,0.00032039,30]
[421705686,1778049233000,-328.357965,0.00032151,7]
[421705685,1778049233000,-328.357965,0.00032151,7]
[421705701,1778049233000,-152.0,0.00032198,7]
[421705696,1778049233000,-1419.836767,0.00032151,7]
[421705690,1778049233000,-151.0,0.00032151,7]
[421705692,1778049233000,-964.36917,0.00032151,7]
[421705688,1778049233000,-328.357965,0.00032151,7]
[421705687,1778049233000,-328.357965,0.00032151,7]
[421705693,1778049233000,-964.36917,0.00032151,7]
[421705694,1778049233000,-1419.836767,0.00032151,7]
[421705691,1778049233000,-964.36917,0.00032151,7]
[421705698,1778049233000,-1177.93,0.00032151,30]
[421705697,1778049233000,-1419.836767,0.00032151,7]
[421705708,1778049233000,-447.0,0.00032302,30]
[421705699,1778049233000,-1177.93,0.00032173,30]
[421705689,1778049233000,-964.36917,0.00032151,7]
[421705726,1778049233000,-1900.0,0.000324,2]
[421705755,1778049233000,-500.0,0.00032877,2]
[421705728,1778049233000,-1177.93,0.0003242,30]
[421705761,1778049233000,-155.19,0.00032877,2]
[421705769,1778049233000,-415.77,0.000332,30]
[421705770,1778049233000,-447.0,0.00033302,30]
[421705762,1778049233000,-731.57736638,0.00033,120]
[421705763,1778049233000,-511.56756463,0.00033,120]
[421705771,1778049233000,-152.0,0.00033316,30]
[421705760,1778049233000,-150.0,0.00032877,30]
[421705764,1778049233000,-3492.21221339,0.00033,120]
[421705765,1778049233000,-212.15154379,0.00033,120]
[421705766,1778049233000,-3672.7778125,0.00033,120]
[421705768,1778049233000,-152.0,0.00033065,8]
[421705749,1778049233000,-318.019443,0.00032877,7]
[421705772,1778049233000,-263.0,0.00033316,30]
[421705775,1778049233000,-501.52296871,0.00033331,26]
[421705773,1778049233000,-342.0,0.00033316,30]
[421705776,1778049233000,-829.0,0.00033333,30]
[421705777,1778049233000,-441.0,0.00033342,30]
[421705782,1778049233000,-490.11070269,0.000335,2]
[421705780,1778049233000,-158.0,0.00033342,30]
[421705781,1778049233000,-742.2641055,0.00033439,120]
[421705778,1778049233000,-153.0,0.00033342,30]
[421705779,1778049233000,-609.0,0.00033342,30]
[421705783,1778049233000,-945.0,0.00033816,7]
[421705725,1778049233000,-1900.0,0.000324,2]
[421705774,1778049233000,-1100.0,0.00033316,30]
[421705754,1778049233000,-229.76505251,0.00032877,2]
[421705767,1778049233000,-359.12267326,0.00033,120]
[421705753,1778049233000,-318.019443,0.00032877,7]
[421705756,1778049233000,-500.0,0.00032877,2]
[421705727,1778049233000,-1896.0,0.000324,2]
[421705734,1778049233000,-200.0,0.00032537,2]
[421705735,1778049233000,-1177.93,0.00032555,30]
[421705745,1778049233000,-399.67,0.00032877,2]
[421705733,1778049233000,-1177.93,0.00032533,30]
[421705736,1778049233000,-150.0,0.00032562,2]
[421705737,1778049233000,-1177.93,0.00032578,30]
[421705740,1778049233000,-607.81341,0.000328,7]
[421705744,1778049233000,-200.0,0.00032837,2]
[421705742,1778049233000,-607.81341,0.000328,7]
[421705741,1778049233000,-607.81341,0.000328,7]
[421705732,1778049233000,-1177.93,0.0003251,30]
[421705738,1778049233000,-1482.73098485,0.000327,2]
[421705743,1778049233000,-607.81341,0.000328,7]
[421705748,1778049233000,-318.019443,0.00032877,7]
[421705751,1778049233000,-318.019443,0.00032877,7]
[421705752,1778049233000,-318.019443,0.00032877,7]
[421705746,1778049233000,-318.019443,0.00032877,7]
[421705750,1778049233000,-318.019443,0.00032877,7]
[421705759,1778049233000,-500.0,0.00032877,2]
[421705757,1778049233000,-500.0,0.00032877,2]
[421705747,1778049233000,-318.019443,0.00032877,7]
[421705739,1778049233000,-73732.17,0.000328,7]
[421705758,1778049233000,-500.0,0.00032877,2]
[421705826,1778049234000,-800.0,0.0003456,2]
[421705825,1778049234000,-800.0,0.0003456,2]
[421705820,1778049234000,-1885.06854802,0.00034447,7]
[421705810,1778049234000,-152.0,0.00034316,30]
[421705819,1778049234000,-945.0,0.00034364,7]
[421705816,1778049234000,-153.0,0.00034342,30]
[421705817,1778049234000,-609.0,0.00034342,30]
[421705808,1778049234000,-176.35951239,0.00034247,30]
[421705809,1778049234000,-447.0,0.00034302,30]
[421705822,1778049234000,-800.0,0.0003456,2]
[421705818,1778049234000,-158.0,0.00034342,30]
[421705821,1778049234000,-800.0,0.0003456,2]
[421705829,1778049234000,-800.0,0.0003456,2]
[421705823,1778049234000,-800.0,0.0003456,2]
[421705828,1778049234000,-800.0,0.0003456,2]
[421705827,1778049234000,-800.0,0.0003456,2]
[421705830,1778049234000,-302.0,0.0003456,2]
[421705836,1778049234000,-511.56756463,0.00035,120]
[421705832,1778049234000,-1500.0,0.00034795,2]
[421705833,1778049234000,-152.0,0.00034797,10]
[421705837,1778049234000,-3492.21221339,0.00035,120]
[421705835,1778049234000,-731.57736638,0.00035,120]
[421705831,1778049234000,-634.75,0.00034638,7]
[421705815,1778049234000,-441.0,0.00034342,30]
[421705824,1778049234000,-800.0,0.0003456,2]
[421705813,1778049234000,-1100.0,0.00034316,30]
[421705784,1778049234000,-731.57736638,0.000339,120]
[421705806,1778049234000,-2502.4,0.00034182,7]
[421705834,1778049234000,-368.73901256,0.0003491,2]
[421705793,1778049234000,-850.0,0.0003398,2]
[421705786,1778049234000,-3492.21221339,0.000339,120]
[421705787,1778049234000,-212.15154379,0.000339,120]
[421705792,1778049234000,-850.0,0.0003398,2]
[421705789,1778049234000,-359.12267326,0.000339,120]
[421705788,1778049234000,-3672.7778125,0.000339,120]
[421705785,1778049234000,-511.56756463,0.000339,120]
[421705790,1778049234000,-152.0,0.00033931,9]
[421705791,1778049234000,-850.0,0.0003398,2]
[421705797,1778049234000,-807.0,0.0003398,2]
[421705795,1778049234000,-850.0,0.0003398,2]
[421705796,1778049234000,-850.0,0.0003398,2]
[421705798,1778049234000,-945.0,0.0003409,7]
[421705803,1778049234000,-500.0,0.00034144,60]
[421705794,1778049234000,-850.0,0.0003398,2]
[421705800,1778049234000,-3772.22319857,0.00034105,30]
[421705802,1778049234000,-331.5694761,0.00034144,60]
[421705804,1778049234000,-701.6405734,0.00034144,60]
[421705799,1778049234000,-73732.17,0.000341,7]
[421705801,1778049234000,-283.6996602,0.00034144,60]
[421705805,1778049234000,-271.5036769,0.00034144,60]
[421705814,1778049234000,-829.0,0.00034333,30]
[421705812,1778049234000,-342.0,0.00034316,30]
[421705807,1778049234000,-150.0,0.0003419,2]
[421705811,1778049234000,-263.0,0.00034316,30]
[421705840,1778049234000,-359.12267326,0.00035,120]
[421705838,1778049234000,-212.15154379,0.00035,120]
[421705894,1778049234000,-152.0,0.0003653,12]
[421705867,1778049234000,-150.0,0.00035899,2]
[421705870,1778049234000,-484.23038226,0.000359,30]
[421705869,1778049234000,-366.99,0.000359,5]
[421705874,1778049234000,-212.15154379,0.00036,120]
[421705884,1778049234000,-152.0,0.00036316,30]
[421705873,1778049234000,-3492.21221339,0.00036,120]
[421705876,1778049234000,-359.12267326,0.00036,120]
[421705877,1778049234000,-50000.0,0.00036,2]
[421705879,1778049234000,-787.0,0.00036164,2]
[421705878,1778049234000,-2502.4,0.00036153,30]
[421705880,1778049234000,-2841.0,0.00036164,2]
[421705883,1778049234000,-447.0,0.00036302,30]
[421705881,1778049234000,-366.99,0.000362,3]
[421705882,1778049234000,-200.0,0.00036222,40]
[421705885,1778049234000,-263.0,0.00036316,30]
[421705886,1778049234000,-342.0,0.00036316,30]
[421705889,1778049234000,-441.0,0.00036342,30]
[421705888,1778049234000,-829.0,0.00036333,30]
[421705892,1778049234000,-158.0,0.00036342,30]
[421705890,1778049234000,-153.0,0.00036342,30]
[421705887,1778049234000,-1100.0,0.00036316,30]
[421705893,1778049234000,-1000.0,0.00036438,5]
[421705895,1778049234000,-261.88,0.00036537,2]
[421705891,1778049234000,-609.0,0.00036342,30]
[421705847,1778049234000,-5000.0,0.00035288,2]
[421705868,1778049234000,-415.77,0.000359,30]
[421705866,1778049234000,-152.0,0.00035664,11]
[421705875,1778049234000,-3672.7778125,0.00036,120]
[421705872,1778049234000,-511.56756463,0.00036,120]
[421705865,1778049234000,-399.67,0.00035616,2]
[421705842,1778049234000,-180.273,0.00035,2]
[421705843,1778049234000,-73732.17,0.00035,7]
[421705846,1778049234000,-8342.81438158,0.00035288,2]
[421705844,1778049234000,-1945.54516062,0.00035,2]
[421705845,1778049234000,-324.37751906,0.00035,7]
[421705841,1778049234000,-150.0,0.00035,2]
[421705848,1778049234000,-5000.0,0.00035288,2]
[421705850,1778049234000,-1500.0,0.000353,7]
[421705849,1778049234000,-5000.0,0.00035288,2]
[421705851,1778049234000,-447.0,0.00035302,30]
[421705853,1778049234000,-263.0,0.00035316,30]
[421705854,1778049234000,-342.0,0.00035316,30]
[421705839,1778049234000,-3672.7778125,0.00035,120]
[421705857,1778049234000,-441.0,0.00035342,30]
[421705852,1778049234000,-152.0,0.00035316,30]
[421705863,1778049234000,-500.0,0.00035616,5]
[421705862,1778049234000,-150.0,0.00035616,30]
[421705860,1778049234000,-158.0,0.00035342,30]
[421705871,1778049234000,-731.57736638,0.00036,120]
[421705864,1778049234000,-500.0,0.00035616,5]
[421705858,1778049234000,-153.0,0.00035342,30]
[421705855,1778049234000,-1100.0,0.00035316,30]
[421705856,1778049234000,-829.0,0.00035333,30]
[421705859,1778049234000,-609.0,0.00035342,30]
[421705861,1778049234000,-4497.93819322,0.0003561,2]
[421705934,1778049235000,-366.99,0.000376,90]
[421705933,1778049235000,-4400.98482659,0.0003759,2]
[421705932,1778049235000,-442.0,0.00037576,2]
[421705925,1778049235000,-441.0,0.00037342,30]
[421705930,1778049235000,-1087.0,0.00037576,2]
[421705924,1778049235000,-829.0,0.00037333,30]
[421705922,1778049235000,-342.0,0.00037316,30]
[421705923,1778049235000,-1100.0,0.00037316,30]
[421705927,1778049235000,-609.0,0.00037342,30]
[421705937,1778049235000,-1000.0,0.000378,7]
[421705931,1778049235000,-150.322,0.00037576,2]
[421705938,1778049235000,-1000.0,0.000378,7]
[421705942,1778049235000,-1000.0,0.000378,7]
[421705939,1778049235000,-1000.0,0.000378,7]
[421705935,1778049235000,-1482.73098485,0.00037633,2]
[421705936,1778049235000,-150.0,0.00037694,2]
[421705941,1778049235000,-1000.0,0.000378,7]
[421705944,1778049235000,-1000.0,0.000378,7]
[421705943,1778049235000,-1000.0,0.000378,7]
[421705948,1778049235000,-1500.0,0.00037808,5]
[421705950,1778049235000,-1004.08156236,0.00038,2]
[421705946,1778049235000,-1000.0,0.000378,7]
[421705945,1778049235000,-1000.0,0.000378,7]
[421705926,1778049235000,-153.0,0.00037342,30]
[421705940,1778049235000,-1000.0,0.000378,7]
[421705920,1778049235000,-152.0,0.00037316,30]
[421705951,1778049235000,-159.74113112,0.00038082,5]
[421705918,1778049235000,-1500.0,0.0003726,5]
[421705897,1778049235000,-211.55,0.00036537,2]
[421705898,1778049235000,-981.0,0.00036619,30]
[421705896,1778049235000,-306.08,0.00036537,2]
[421705899,1778049235000,-733.0,0.00036619,30]
[421705900,1778049235000,-438.0,0.00036619,30]
[421705902,1778049235000,-268.30951427,0.00036656,2]
[421705901,1778049235000,-500.0,0.0003663,2]
[421705904,1778049235000,-1634.5399902,0.000368,2]
[421705905,1778049235000,-1300.0,0.000369,13]
[421705903,1778049235000,-1000.0,0.00036712,5]
[421705906,1778049235000,-3338.432,0.0003695,46]
[421705907,1778049235000,-333.865,0.0003695,46]
[421705908,1778049235000,-600.0,0.00036986,120]
[421705909,1778049235000,-600.0,0.00036986,120]
[421705914,1778049235000,-4685.30481988,0.00037,3]
[421705911,1778049235000,-600.0,0.00036986,120]
[421705910,1778049235000,-600.0,0.00036986,120]
[421705912,1778049235000,-435.0,0.00036986,120]
[421705913,1778049235000,-365.0,0.00037,2]
[421705915,1778049235000,-3492.21221339,0.000371,120]
[421705917,1778049235000,-189.47926864,0.000372,120]
[421705916,1778049235000,-3672.7778125,0.000371,120]
[421705919,1778049235000,-447.0,0.00037302,30]
[421705928,1778049235000,-171.03519017,0.00037342,30]
[421705929,1778049235000,-152.0,0.00037396,13]
[421705921,1778049235000,-263.0,0.00037316,30]
[421705949,1778049235000,-591.9658418,0.00037975,5]
[421706006,1778049235000,-300.0,0.00038413,2]
[421705952,1778049235000,-2502.4,0.00038125,30]
[421705979,1778049235000,-596.62576207,0.00038413,2]
[421705981,1778049235000,-300.0,0.00038413,2]
[421705983,1778049235000,-300.0,0.00038413,2]
[421705984,1778049235000,-300.0,0.00038413,2]
[421705987,1778049235000,-300.0,0.00038413,2]
[421705986,1778049235000,-363.42720589,0.00038413,2]
[421705988,1778049235000,-300.0,0.00038413,2]
[421705989,1778049235000,-300.0,0.00038413,2]
[421705990,1778049235000,-300.0,0.00038413,2]
[421705991,1778049235000,-603.45144378,0.00038413,2]
[421705994,1778049235000,-300.0,0.00038413,2]
[421705980,1778049235000,-363.66476074,0.00038413,2]
[421705992,1778049235000,-300.0,0.00038413,2]
[421705995,1778049235000,-476.87909536,0.00038413,2]
[421705997,1778049235000,-300.0,0.00038413,2]
[421706000,1778049235000,-300.0,0.00038413,2]
[421706001,1778049235000,-309.13065885,0.00038413,2]
[421705999,1778049235000,-891.9241332,0.00038413,2]
[421705998,1778049235000,-1065.13491717,0.00038413,2]
[421706002,1778049235000,-724.83131769,0.00038413,2]
[421706005,1778049235000,-300.0,0.00038413,2]
[421706004,1778049235000,-301.2859328,0.00038413,2]
[421706003,1778049235000,-300.0,0.00038413,2]
[421705947,1778049235000,-415.77,0.000378,30]
[421705993,1778049235000,-300.0,0.00038413,2]
[421705982,1778049235000,-300.0,0.00038413,2]
[421705996,1778049235000,-526.86051061,0.00038413,2]
[421705974,1778049235000,-300.0,0.00038413,2]
[421705957,1778049235000,-3492.21221339,0.000382,120]
[421705978,1778049235000,-300.0,0.00038413,2]
[421705953,1778049235000,-500.0,0.00038199,2]
[421705958,1778049235000,-3672.7778125,0.000382,120]
[421705956,1778049235000,-551.68,0.00038199,30]
[421705954,1778049235000,-564.76,0.00038199,120]
[421705960,1778049235000,-2017.4305,0.00038351,2]
[421705959,1778049235000,-152.0,0.00038263,14]
[421705962,1778049235000,-650.0,0.00038356,2]
[421705961,1778049235000,-150.0,0.00038356,120]
[421705963,1778049235000,-650.0,0.00038356,2]
[421705973,1778049235000,-300.0,0.00038413,2]
[421705967,1778049235000,-458.0,0.00038356,2]
[421705955,1778049235000,-507.14,0.00038199,7]
[421705976,1778049235000,-300.0,0.00038413,2]
[421705968,1778049235000,-350.0,0.00038356,2]
[421705977,1778049235000,-300.0,0.00038413,2]
[421705985,1778049235000,-491.85958444,0.00038413,2]
[421705970,1778049235000,-338.0,0.00038356,2]
[421705966,1778049235000,-600.0,0.00038356,2]
[421705975,1778049235000,-300.0,0.00038413,2]